fUST/lending_fUST_20240701
["ID","MTS","AMOUNT","RATE_DAILY","PERIOD"]
[330787266,1719784240117,-500.0,0.00015019,2]
[330787267,1719784240127,-500.0,0.00015019,2]
[330787268,1719784240136,-500.0,0.00015019,2]
[330787269,1719784240145,-503.87930948,0.00015019,2]
[330787270,1719784240154,-1477.11,0.00015019,2]
[330787271,1719784240164,-534.37005601,0.00015019,2]
[330787272,1719784240173,-1900.93,0.00015019,2]
[330787273,1719784240183,-506.54,0.00015019,2]
[330787274,1719784240192,-501.61395352,0.00015019,2]
[330787275,1719784240202,-500.0,0.00015019,2]
[330787276,1719784240212,-500.0,0.00015019,2]
[330787277,1719784240221,-500.0,0.00015019,2]
[330787278,1719784240230,-678.75,0.00015019,2]
[330787279,1719784240240,-1204.69,0.00015019,2]
[330787280,1719784240249,-500.0,0.00015019,2]
[330787281,1719784240258,-500.0,0.00015019,2]
[330787282,1719784240267,-500.0,0.00015019,2]
[330787283,1719784240277,-500.0,0.00015019,2]
[330787284,1719784240286,-500.0,0.00015019,2]
[330787285,1719784240295,-1252.68,0.00015019,2]
[330787286,1719784240305,-500.0,0.00015019,2]
[330787287,1719784240314,-504.07869845,0.00015019,2]
[330787288,1719784240324,-500.0,0.00015019,2]
[330787289,1719784240333,-500.0,0.00015019,2]
[330787290,1719784240343,-500.0,0.00015019,2]
[330787291,1719784240352,-500.0,0.00015019,2]
[330787292,1719784240361,-552.36,0.00015019,2]
[330787293,1719784240371,-690.31,0.00015019,2]
[330787294,1719784240381,-500.0,0.00015019,2]
[330787295,1719784240390,-500.0,0.00015019,2]
[330787296,1719784240400,-500.0,0.00015019,2]
[330787297,1719784240410,-567.73,0.00015019,2]
[330787298,1719784240420,-500.0,0.00015019,2]
[330787299,1719784240429,-500.0,0.00015019,2]
[330787300,1719784240439,-500.0,0.00015019,2]
[330787301,1719784240448,-500.0,0.00015019,2]
[330787302,1719784240457,-500.0,0.00015019,2]
[330787304,1719784240466,-500.0,0.00015019,2]
[330787305,1719784240476,-500.0,0.00015019,2]
[330787306,1719784240486,-500.0,0.00015019,2]
[330787307,1719784240495,-505.87716427,0.00015019,2]
[330787308,1719784240505,-584.51,0.00015019,2]
[330787309,1719784240514,-507.19,0.00015019,2]
[330787310,1719784240523,-500.0,0.00015019,2]
[330787311,1719784240534,-500.0,0.00015019,2]
[330787312,1719784240543,-500.0,0.00015019,2]
[330787313,1719784240553,-500.0,0.00015019,2]
[330787314,1719784240562,-500.0,0.00015019,2]
[330787315,1719784240572,-500.0,0.00015019,2]
[330787317,1719784240581,-632.56,0.00015019,2]
[330787319,1719784240591,-500.0,0.00015019,2]
[330787320,1719784240600,-500.0,0.00015019,2]
[330787321,1719784240610,-500.0,0.00015019,2]
[330787322,1719784240619,-500.0,0.00015019,2]
[330787323,1719784240628,-500.0,0.00015019,2]
[330787324,1719784240638,-500.0,0.00015019,2]
[330787325,1719784240647,-1211.04,0.00015019,2]
[330787326,1719784240657,-1900.85,0.00015019,2]
[330787327,1719784240666,-500.0,0.00015019,2]
[330787328,1719784240675,-500.0,0.00015019,2]
[330787329,1719784240684,-2665.61,0.00015019,2]
[330787330,1719784240693,-566.89,0.00015019,2]
[330787331,1719784240703,-500.0,0.00015019,2]
[330787332,1719784240712,-691.55,0.00015019,2]
[330787333,1719784240722,-500.0,0.00015019,2]
[330787334,1719784240731,-500.0,0.00015019,2]
[330787335,1719784240740,-500.0,0.00015019,2]
[330787336,1719784240749,-618.39,0.00015019,2]
[330787337,1719784240759,-657.71,0.00015019,2]
[330787338,1719784240768,-500.0,0.00015019,2]
[330787339,1719784240777,-500.0,0.00015019,2]
[330787340,1719784240786,-500.0,0.00015019,2]
[330787341,1719784240795,-500.0,0.00015019,2]
[330787342,1719784240805,-1079.91,0.00015019,2]
[330787343,1719784240815,-500.0,0.00015019,2]
[330787344,1719784240825,-7732.46,0.00015019,2]
[330787345,1719784240834,-752.05,0.00015019,2]
[330787346,1719784240843,-500.0,0.00015019,2]
[330787347,1719784240853,-1331.8,0.00015019,2]
[330787348,1719784240862,-500.0,0.00015019,2]
[330787349,1719784240871,-500.0,0.00015019,2]
[330787350,1719784240881,-729.6,0.00015019,2]
[330787351,1719784240891,-500.0,0.00015019,2]
[330787352,1719784240900,-500.0,0.00015019,2]
[330787353,1719784240909,-500.0,0.00015019,2]
[330787354,1719784240918,-500.0,0.00015019,2]
[330787355,1719784240927,-500.0,0.00015019,2]
[330787356,1719784240937,-502.75674571,0.00015019,2]
[330787357,1719784240946,-502.93440934,0.00015019,2]
[330787358,1719784240957,-500.0,0.00015019,2]
[330787359,1719784240967,-502.04937503,0.00015019,2]
[330787360,1719784240976,-659.31,0.00015019,2]
[330787361,1719784240989,-939.01,0.00015019,2]
[330787362,1719784240998,-500.0,0.00015019,2]
[330787363,1719784241010,-502.57701407,0.00015019,2]
[330787364,1719784241020,-525.20100182,0.00015019,2]
[330787365,1719784241029,-1395.24,0.00015019,2]
[330787366,1719784241039,-500.0,0.00015019,2]
[330787367,1719784241048,-501.49386936,0.00015019,2]
[330787368,1719784241059,-523.78964543,0.00015019,2]
[330787369,1719784241068,-500.0,0.00015019,2]
[330787370,1719784241078,-500.0,0.00015019,2]
[330787371,1719784241088,-1508.56,0.00015019,2]
[330787372,1719784241099,-500.80456888,0.00015019,2]
[330787373,1719784241110,-500.0,0.00015019,2]
[330787374,1719784241120,-500.0,0.00015019,2]
[330787375,1719784241129,-500.0,0.00015019,2]
[330787376,1719784241141,-500.0,0.00015019,2]
[330787377,1719784241150,-500.0,0.00015019,2]
[330787378,1719784241159,-663.0,0.00015019,2]
[330787379,1719784241168,-500.0,0.00015019,2]
[330787380,1719784241177,-500.0,0.00015019,2]
[330787381,1719784241186,-500.0,0.00015019,2]
[330787382,1719784241195,-731.78,0.00015019,2]
[330787383,1719784241208,-297.31,0.0001502,2]
[330787384,1719784241218,-500.0,0.0001502,2]
[330787385,1719784241227,-500.0,0.0001502,2]
[330787386,1719784241236,-882.44,0.0001502,2]
[330787387,1719784241245,-500.0,0.0001502,2]
[330787388,1719784241255,-500.0,0.0001502,2]
[330787389,1719784241264,-500.0,0.0001502,2]
[330787390,1719784241273,-658.14,0.0001502,2]
[330787391,1719784241282,-176.49,0.0001502,2]
[330787392,1719784241292,-500.0,0.0001502,2]
[330787393,1719784241301,-500.0,0.0001502,2]
[330787394,1719784241416,-500.0,0.0001502,2]
[330787395,1719784241428,-500.0,0.0001502,2]
[330787396,1719784241439,-500.0,0.0001502,2]
[330787397,1719784241451,-38249.80403179,0.00015021,2]
[330787398,1719784241462,-503.25544065,0.00015021,2]
[330787399,1719784241470,-500.0,0.00015021,2]
[330787400,1719784241479,-500.0,0.00015021,2]
[330787401,1719784241490,-500.0,0.00015021,2]
[330787402,1719784241499,-506.6881832,0.00015021,2]
[330787403,1719784241510,-500.0,0.00015021,2]
[330787404,1719784241519,-502.09873445,0.00015021,2]
[330787405,1719784241528,-500.0,0.00015021,2]
[330787406,1719784241537,-500.0,0.00015021,2]
[330787407,1719784241547,-502.84176191,0.00015021,2]
[330787408,1719784241556,-500.0,0.00015021,2]
[330787409,1719784241565,-500.0,0.00015021,2]
[330787410,1719784241575,-238.44088369,0.00015021,2]
[330787411,1719784241585,-500.0,0.00015021,2]
[330787412,1719784241595,-500.0,0.00015021,2]
[330787413,1719784241606,-500.0,0.00015021,2]
[330787414,1719784241615,-503.31027785,0.00015021,2]
[330787415,1719784241624,-500.0,0.00015021,2]
[330787416,1719784241634,-355.64582305,0.00015021,2]
[330787417,1719784241643,-500.0,0.00015021,2]
[330787418,1719784241653,-500.0,0.00015021,2]
[330787419,1719784241663,-500.0,0.00015021,2]
[330787420,1719784241674,-500.0,0.00015021,2]
[330787421,1719784241684,-500.0,0.00015021,2]
[330787422,1719784241693,-500.0,0.00015021,2]
[330787423,1719784241705,-500.0,0.00015021,2]
[330787424,1719784241714,-500.0,0.00015021,2]
[330787425,1719784241723,-500.0,0.00015021,2]
[330787426,1719784241733,-1035.48,0.00015021,2]
[330787427,1719784241743,-500.0,0.00015021,2]
[330787428,1719784241753,-500.0,0.00015021,2]
[330787429,1719784241762,-500.0,0.00015021,2]
[330787430,1719784241772,-500.0,0.00015021,2]
[330787431,1719784241782,-500.0,0.00015021,2]
[330787432,1719784241791,-500.0,0.00015021,2]
[330787433,1719784241801,-500.0,0.00015021,2]
[330787434,1719784241811,-500.0,0.00015021,2]
[330787435,1719784241822,-515.97714788,0.00015021,2]
[330787436,1719784241831,-500.0,0.00015021,2]
[330787437,1719784241843,-500.0,0.00015021,2]
[330787438,1719784241853,-500.0,0.00015021,2]
[330787439,1719784241863,-500.0,0.00015021,2]
[330787440,1719784241872,-500.0,0.00015021,2]
[330787441,1719784241882,-500.0,0.00015021,2]
[330787442,1719784241892,-501.58,0.00015021,2]
[330787443,1719784241901,-500.0,0.00015021,2]
[330787444,1719784241911,-500.0,0.00015021,2]
[330787445,1719784241920,-500.0,0.00015021,2]
[330787446,1719784241930,-500.0,0.00015021,2]
[330787447,1719784241942,-500.6113453,0.00015021,2]
[330787448,1719784241952,-500.0,0.00015021,2]
[330787449,1719784241962,-500.0,0.00015021,2]
[330787450,1719784241971,-500.0,0.00015021,2]
[330787451,1719784241980,-500.0,0.00015021,2]
[330787452,1719784241991,-500.0,0.00015021,2]
[330787453,1719784242000,-500.0,0.00015021,2]
[330787454,1719784242014,-501.84465313,0.00015021,2]
[330787455,1719784242023,-500.0,0.00015021,2]
[330787456,1719784242032,-500.0,0.00015021,2]
[330787457,1719784242041,-500.0,0.00015021,2]
[330787458,1719784242051,-500.0,0.00015021,2]
[330787459,1719784242060,-193.59896589,0.00015021,2]
[330787460,1719784242069,-500.0,0.00015021,2]
[330787461,1719784242078,-500.0,0.00015021,2]
[330787462,1719784242090,-500.0,0.00015021,2]
[330787463,1719784242100,-500.85030388,0.00015021,2]
[330787464,1719784242110,-500.0,0.00015021,2]
[330787465,1719784242119,-500.0,0.00015021,2]
[330787466,1719784242128,-500.0,0.00015021,2]
[330787467,1719784242138,-500.0,0.00015021,2]
[330787468,1719784242147,-500.0,0.00015021,2]
[330787469,1719784242156,-500.0,0.00015021,2]
[330787470,1719784242165,-500.0,0.00015021,2]
[330787471,1719784242175,-500.0,0.00015021,2]
[330787472,1719784242184,-500.97165346,0.00015021,2]
[330787473,1719784242193,-500.0,0.00015021,2]
[330787474,1719784242202,-500.0,0.00015021,2]
[330787475,1719784242211,-500.0,0.00015021,2]
[330787476,1719784242219,-500.0,0.00015021,2]
[330787477,1719784242228,-500.0,0.00015021,2]
[330787478,1719784242238,-500.0,0.00015021,2]
[330787479,1719784242247,-500.0,0.00015021,2]
[330787480,1719784242256,-500.0,0.00015021,2]
[330787481,1719784242266,-500.0,0.00015021,2]
[330787482,1719784242275,-548.13,0.00015021,2]
[330787483,1719784242284,-500.0,0.00015021,2]
[330787484,1719784242293,-500.0,0.00015021,2]
[330787485,1719784242302,-500.0,0.00015021,2]
[330787486,1719784242311,-500.0,0.00015021,2]
[330787487,1719784242321,-500.0,0.00015021,2]
[330787488,1719784242330,-500.0,0.00015021,2]
[330787489,1719784242339,-500.0,0.00015021,2]
[330787490,1719784242348,-506.06433584,0.00015021,2]
[330787491,1719784242357,-500.0,0.00015021,2]
[330787492,1719784242368,-500.0,0.00015021,2]
[330787493,1719784242377,-500.0,0.00015021,2]
[330787494,1719784242386,-500.0,0.00015021,2]
[330787495,1719784242395,-500.0,0.00015021,2]
[330787496,1719784242406,-500.0,0.00015021,2]
[330787497,1719784242415,-500.0,0.00015021,2]
[330787498,1719784242424,-500.0,0.00015021,2]
[330787499,1719784242433,-716.81,0.00015021,2]
[330787500,1719784242442,-500.0,0.00015021,2]
[330787501,1719784242452,-500.0,0.00015021,2]
[330787502,1719784242462,-500.0,0.00015021,2]
[330787503,1719784242471,-500.0,0.00015021,2]
[330787504,1719784242480,-500.0,0.00015021,2]
[330787505,1719784242489,-500.0,0.00015021,2]
[330787506,1719784242498,-633.99836362,0.00015021,2]
[330787507,1719784242507,-415.53313475,0.00015021,2]
[330787508,1719784242516,-500.0,0.00015021,2]
[330787509,1719784242526,-500.0,0.00015021,2]
[330787510,1719784242534,-500.0,0.00015021,2]
[330787511,1719784242543,-500.0,0.00015021,2]
[330787512,1719784242552,-500.0,0.00015021,2]
[330787513,1719784242561,-500.0,0.00015021,2]
[330787514,1719784242571,-614.12,0.00015021,2]
[330787515,1719784242579,-500.0,0.00015021,2]
[330787516,1719784242589,-500.0,0.00015021,2]
[330787517,1719784242597,-500.0,0.00015021,2]
[330787518,1719784242607,-500.0,0.00015021,2]
[330787519,1719784242616,-500.94982427,0.00015021,2]
[330787520,1719784242624,-500.0,0.00015021,2]
[330787521,1719784242634,-500.0,0.00015021,2]
[330787522,1719784242643,-500.0,0.00015021,2]
[330787523,1719784242652,-576.07,0.00015021,2]
[330787524,1719784242661,-500.0,0.00015021,2]
[330787525,1719784242670,-500.0,0.00015021,2]
[330787526,1719784242679,-500.0,0.00015021,2]
[330787527,1719784242688,-500.0,0.00015021,2]
[330787528,1719784242697,-501.17891431,0.00015021,2]
[330787529,1719784242707,-500.0,0.00015021,2]
[330787530,1719784242716,-500.0,0.00015021,2]
[330787531,1719784242725,-500.0,0.00015021,2]
[330787532,1719784242734,-500.0,0.00015021,2]
[330787533,1719784242747,-257.73467026,0.00015021,2]
[330787534,1719784242756,-500.0,0.00015021,2]
[330787535,1719784242766,-500.0,0.00015021,2]
[330787536,1719784242775,-500.0,0.00015021,2]
[330787537,1719784242784,-500.0,0.00015021,2]
[330787538,1719784242793,-1343.1,0.00015021,2]
[330787539,1719784242803,-500.0,0.00015021,2]
[330787540,1719784242812,-500.0,0.00015021,2]
[330787541,1719784242821,-500.0,0.00015021,2]
[330787542,1719784242830,-505.63234199,0.00015021,2]
[330787543,1719784242839,-500.0,0.00015021,2]
[330787544,1719784242848,-500.0,0.00015021,2]
[330787545,1719784242857,-500.0,0.00015021,2]
[330787546,1719784242866,-701.74,0.00015021,2]
[330787547,1719784242874,-500.0,0.00015021,2]
[330787548,1719784242883,-500.0,0.00015021,2]
[330787549,1719784242892,-500.0,0.00015021,2]
[330787550,1719784242902,-501.35787624,0.00015021,2]
[330787551,1719784242911,-500.0,0.00015021,2]
[330787552,1719784242920,-500.0,0.00015021,2]
[330787553,1719784242929,-500.0,0.00015021,2]
[330787554,1719784242938,-500.0,0.00015021,2]
[330787555,1719784242947,-500.0,0.00015021,2]
[330787556,1719784242957,-549.75,0.00015021,2]
[330787557,1719784242966,-500.0,0.00015021,2]
[330787558,1719784242976,-500.0,0.00015021,2]
[330787559,1719784242985,-500.0,0.00015021,2]
[330787560,1719784242995,-500.0,0.00015021,2]
[330787561,1719784243005,-500.0,0.00015021,2]
[330787562,1719784243018,-500.0,0.00015021,2]
[330787563,1719784243028,-500.0,0.00015021,2]
[330787564,1719784243037,-501.17690381,0.00015021,2]
[330787565,1719784243047,-501.05297207,0.00015021,2]
[330787566,1719784243058,-500.0,0.00015021,2]
[330787567,1719784243067,-500.0,0.00015021,2]
[330787568,1719784243077,-500.0,0.00015021,2]
[330787569,1719784243089,-500.0,0.00015021,2]
[330787570,1719784243099,-500.0,0.00015021,2]
[330787571,1719784243108,-500.0,0.00015021,2]
[330787572,1719784243117,-507.93984838,0.00015021,2]
[330787573,1719784243126,-502.97197807,0.00015021,2]
[330787574,1719784243136,-500.0,0.00015021,2]
[330787575,1719784243146,-500.0,0.00015021,2]
[330787576,1719784243155,-523.92,0.00015021,2]
[330787577,1719784243164,-500.0,0.00015021,2]
[330787578,1719784243174,-500.0,0.00015021,2]
[330787579,1719784243183,-500.0,0.00015021,2]
[330787580,1719784243192,-500.0,0.00015021,2]
[330787581,1719784243201,-500.0,0.00015021,2]
[330787582,1719784243210,-955.63,0.00015021,2]
[330787583,1719784243219,-500.0,0.00015021,2]
[330787585,1719784243228,-500.0,0.00015021,2]
[330787587,1719784243237,-500.0,0.00015021,2]
[330787589,1719784243246,-255.4048986,0.00015021,2]
[330787591,1719784243256,-502.47071068,0.00015021,2]
[330787593,1719784243265,-500.0,0.00015021,2]
[330787595,1719784243275,-227.81582579,0.00015021,2]
[330787597,1719784243286,-500.0,0.00015021,2]
[330787599,1719784243296,-500.0,0.00015021,2]
[330787601,1719784243307,-502.1796203,0.00015021,2]
[330787603,1719784243317,-1107.04,0.00015021,2]
[330787605,1719784243327,-500.0,0.00015021,2]
[330787607,1719784243336,-500.0,0.00015021,2]
[330787609,1719784243345,-500.0,0.00015021,2]
[330787611,1719784243354,-500.0,0.00015021,2]
[330787614,1719784243364,-500.0,0.00015021,2]
[330787617,1719784243373,-500.0,0.00015021,2]
[330787621,1719784243383,-500.0,0.00015021,2]
[330787624,1719784243393,-500.0,0.00015021,2]
[330787626,1719784243403,-500.0,0.00015021,2]
[330787627,1719784243412,-500.0,0.00015021,2]
[330787628,1719784243423,-502.50844796,0.00015021,2]
[330787629,1719784243433,-625.67,0.00015021,2]
[330787630,1719784243442,-500.0,0.00015021,2]
[330787631,1719784243452,-500.0,0.00015021,2]
[330787632,1719784243461,-500.0,0.00015021,2]
[330787633,1719784243469,-500.0,0.00015021,2]
[330787634,1719784243478,-500.0,0.00015021,2]
[330787635,1719784243487,-500.0,0.00015021,2]
[330787637,1719784243496,-500.0,0.00015021,2]
[330787638,1719784243506,-769.97,0.00015021,2]
[330787639,1719784243515,-192.29668673,0.00015021,2]
[330787640,1719784243524,-500.0,0.00015021,2]
[330787642,1719784243533,-597.71,0.00015021,2]
[330787643,1719784243542,-500.0,0.00015021,2]
[330787645,1719784243552,-500.0,0.00015021,2]
[330787647,1719784243561,-500.0,0.00015021,2]
[330787649,1719784243570,-500.0,0.00015021,2]
[330787651,1719784243579,-569.8,0.00015021,2]
[330787653,1719784243588,-500.0,0.00015021,2]
[330787655,1719784243597,-501.99474033,0.00015021,2]
[330787657,1719784243606,-635.35,0.00015021,2]
[330787661,1719784243711,-500.0,0.00015021,2]
[330787662,1719784243722,-992.74,0.00015021,2]
[330787664,1719784243734,-500.0,0.00015021,2]
[330787666,1719784243743,-985.85,0.00015021,2]
[330787668,1719784243752,-500.0,0.00015021,2]
[330787670,1719784243762,-500.0,0.00015021,2]
[330787671,1719784243772,-500.0,0.00015021,2]
[330787674,1719784243781,-622.60315448,0.00015021,2]
[330787675,1719784243791,-500.0,0.00015021,2]
[330787676,1719784243800,-500.0,0.00015021,2]
[330787677,1719784243810,-500.0,0.00015021,2]
[330787678,1719784243819,-500.0,0.00015021,2]
[330787679,1719784243828,-500.0,0.00015021,2]
[330787680,1719784243837,-500.0,0.00015021,2]
[330787681,1719784243846,-500.0,0.00015021,2]
[330787682,1719784243855,-501.50250761,0.00015021,2]
[330787683,1719784243864,-500.0,0.00015021,2]
[330787684,1719784243873,-500.0,0.00015021,2]
[330787685,1719784243882,-728.6,0.00015021,2]
[330787686,1719784243891,-504.20451429,0.00015021,2]
[330787687,1719784243900,-502.45195742,0.00015021,2]
[330787688,1719784243909,-500.0,0.00015021,2]
[330787689,1719784243918,-500.0,0.00015021,2]
[330787690,1719784243927,-501.38510686,0.00015021,2]
[330787691,1719784243936,-500.0,0.00015021,2]
[330787692,1719784243945,-500.0,0.00015021,2]
[330787693,1719784243955,-500.0,0.00015021,2]
[330787694,1719784243964,-500.8820583,0.00015021,2]
[330787695,1719784243976,-500.0,0.00015021,2]
[330787696,1719784243986,-500.0,0.00015021,2]
[330787697,1719784243995,-500.0,0.00015021,2]
[330787698,1719784244004,-500.0,0.00015021,2]
[330787700,1719784244018,-502.45667512,0.00015021,2]
[330787702,1719784244027,-507.16877784,0.00015021,2]
[330787705,1719784244036,-500.0,0.00015021,2]
[330787708,1719784244045,-500.0,0.00015021,2]
[330787711,1719784244055,-492.39499057,0.00015021,2]
[330787713,1719784244065,-516.14600134,0.00015021,2]
[330787715,1719784244075,-500.0,0.00015021,2]
[330787717,1719784244084,-500.0,0.00015022,2]
[330787719,1719784244096,-500.0,0.00015022,2]
[330787721,1719784244106,-500.0,0.00015022,2]
[330787723,1719784244115,-501.89703976,0.00015022,2]
[330787725,1719784244124,-356.38270483,0.00015022,2]
[330787727,1719784244133,-500.0,0.00015022,2]
[330787729,1719784244142,-501.49850375,0.00015023,2]
[330787731,1719784244151,-9421.47,0.00015023,2]
[330787733,1719784244160,-41.91094481,0.00015023,2]
[330787736,1719784244179,-458.08905519,0.00015023,2]
[330787738,1719784244189,-500.0,0.00015023,2]
[330787740,1719784244198,-500.0,0.00015023,2]
[330787742,1719784244209,-500.0,0.00015023,2]
[330787744,1719784244218,-502.09549612,0.00015023,2]
[330787746,1719784244227,-1263.64,0.00015023,2]
[330787748,1719784244236,-5967.53,0.00015023,2]
[330787750,1719784244246,-500.0,0.00015023,2]
[330787752,1719784244256,-1197.07,0.00015023,2]
[330787754,1719784244265,-500.0,0.00015023,2]
[330787756,1719784244274,-854.51,0.00015023,2]
[330787758,1719784244283,-872.21,0.00015023,2]
[330787760,1719784244292,-9553.25,0.00015023,2]
[330787762,1719784244302,-500.0,0.00015058,2]
[330787764,1719784244311,-500.0,0.00015058,2]
[330787766,1719784244321,-500.0,0.00015058,2]
[330787768,1719784244330,-500.0,0.00015058,2]
[330787770,1719784244339,-500.0,0.00015058,2]
[330787772,1719784244348,-12669.77087831,0.00015059,2]
[330787791,1719784245170,-500.0,0.00015017,2]
[330787792,1719784245179,-133.980316,0.00015018,2]
[330787793,1719784245469,199.83014591,0.00014999,2]
[330787806,1719784246925,-392.799684,0.00015018,2]
[330787807,1719784246936,-500.0,0.00015018,2]
[330787808,1719784246946,-193157.69078592,0.00015059,2]
[330787809,1719784246955,-153.0,0.000154,2]
[330787810,1719784246965,-500.0,0.00015566,2]
[330787811,1719784246974,-500.0,0.00015566,2]
[330787812,1719784246984,-500.0,0.00015566,2]
[330787813,1719784246994,-500.0,0.00015566,2]
[330787814,1719784247003,-171.80045941,0.00015566,2]
[330787815,1719784247019,-225.64,0.00015566,2]
[330787816,1719784247028,-500.0,0.00015566,2]
[330787817,1719784247038,-500.0,0.00015566,2]
[330787818,1719784247047,-500.0,0.00015566,2]
[330787819,1719784247059,-362.78,0.00015566,2]
[330787820,1719784247069,-3113.56,0.00015566,2]
[330787821,1719784247079,-3169.04,0.00015566,2]
[330787822,1719784247090,-500.0,0.00015566,2]
[330787823,1719784247100,-500.0,0.00015566,2]
[330787824,1719784247109,-1565.74,0.00015566,2]
[330787825,1719784247119,-500.0,0.00015566,2]
[330787826,1719784247129,-500.0,0.00015566,2]
[330787827,1719784247138,-500.0,0.00015566,2]
[330787828,1719784247147,-500.0,0.00015566,2]
[330787829,1719784247157,-500.0,0.00015566,2]
[330787830,1719784247166,-1426.96,0.00015566,2]
[330787831,1719784247176,-988.17,0.00015566,2]
[330787832,1719784247185,-1553.32,0.00015566,2]
[330787833,1719784247195,-500.0,0.00015566,2]
[330787834,1719784247205,-5789.72,0.00015566,2]
[330787835,1719784247297,-564.62,0.00015566,2]
[330787836,1719784247326,-500.0,0.00015566,2]
[330787837,1719784247336,-500.0,0.00015566,2]
[330787838,1719784247345,-1186.2,0.00015566,2]
[330787839,1719784247355,-500.0,0.00015566,2]
[330787840,1719784247365,-500.0,0.00015566,2]
[330787841,1719784247374,-12145.88,0.00015566,2]
[330787842,1719784247384,-583.64,0.00015566,2]
[330787843,1719784247394,-500.0,0.00015566,2]
[330787844,1719784247403,-12022.36,0.00015566,2]
[330787845,1719784247413,-1798.12,0.00015566,2]
[330787846,1719784247422,-500.0,0.00015566,2]
[330787847,1719784247431,-500.0,0.00015566,2]
[330787848,1719784247441,-649.69,0.00015566,2]
[330787849,1719784247451,-559.43,0.00015566,2]
[330787850,1719784247461,-500.0,0.00015566,2]
[330787851,1719784247471,-3390.69,0.00015566,2]
[330787852,1719784247480,-738.78,0.00015566,2]
[330787853,1719784247490,-500.0,0.00015566,2]
[330787854,1719784247499,-500.0,0.00015566,2]
[330787855,1719784247508,-2004.12,0.00015566,2]
[330787856,1719784247517,-500.0,0.00015566,2]
[330787857,1719784247526,-8842.73,0.00015566,2]
[330787858,1719784247535,-686.1,0.00015566,2]
[330787859,1719784247544,-5522.15,0.00015566,2]
[330787860,1719784247553,-1080.8,0.00015566,2]
[330787861,1719784247562,-1207.01,0.00015567,2]
[330787862,1719784247571,-500.0,0.00015567,2]
[330787863,1719784247580,-500.0,0.00015567,2]
[330787864,1719784247590,-500.0,0.00015567,2]
[330787865,1719784247599,-500.0,0.00015567,2]
[330787866,1719784247608,-500.0,0.00015567,2]
[330787867,1719784247618,-1509.24,0.00015567,2]
[330787868,1719784247627,-500.0,0.00015567,2]
[330787869,1719784247636,-500.0,0.00015567,2]
[330787870,1719784247645,-500.0,0.00015567,2]
[330787871,1719784247656,-1477.11,0.00015567,2]
[330787872,1719784247665,-1900.93,0.00015567,2]
[330787873,1719784247674,-506.54,0.00015567,2]
[330787874,1719784247683,-500.0,0.00015567,2]
[330787875,1719784247692,-506.8484284,0.00015567,2]
[330787876,1719784247702,-678.75,0.00015567,2]
[330787877,1719784247713,-1204.69,0.00015567,2]
[330787878,1719784247722,-500.0,0.00015567,2]
[330787879,1719784247731,-506.28796001,0.00015567,2]